[Event "Kvibergspelen 2018"]
[Site "Prioritet Serneke Arena, Krutvagen 2, Gothenburg, Sweden"]
[Date "2018.04.20"]
[Round "4.2"]
[White "Pantzar, Milton"]
[Black "Blomqvist, Erik"]
[Result "0-1"]
[TimeControl "15 minutes + 5 seconds per move from move one (Round 1 - 4) / 90 minutes + 30 seconds per move from move one (Round 5 - 8)"]
[WhiteTitle "FM"]
[BlackTitle "GM"]
[WhiteFideId "1721003"]
[BlackFideId "1709437"]
[WhiteElo "2295"]
[BlackElo "2494"]

1. Nf3 {[%clk 00:15:07]} {[%emt 00:00:03]} d5 {[%clk 00:14:55]} {[%emt
00:00:15]} 2. g3 {[%clk 00:15:05]} {[%emt 00:00:07]} Nf6 {[%clk 00:14:43]}
{[%emt 00:00:17]} 3. Bg2 {[%clk 00:15:03]} {[%emt 00:00:07]} e6 {[%clk
00:14:47]} {[%emt 00:00:02]} 4. O-O {[%clk 00:15:01]} {[%emt 00:00:07]} Be7
{[%clk 00:14:50]} {[%emt 00:00:02]} 5. b3 {[%clk 00:14:23]} {[%emt 00:00:43]}
O-O {[%clk 00:14:39]} {[%emt 00:00:15]} 6. Bb2 {[%clk 00:14:26]} {[%emt
00:00:02]} b6 {[%clk 00:14:17]} {[%emt 00:00:27]} 7. d4 {[%clk 00:13:08]}
{[%emt 00:01:23]} Bb7 {[%clk 00:14:08]} {[%emt 00:00:14]} 8. e3 {[%clk
00:11:57]} {[%emt 00:01:16]} Nbd7 {[%clk 00:13:09]} {[%emt 00:01:03]} 9. Qe2
{[%clk 00:11:53]} {[%emt 00:00:09]} c5 {[%clk 00:13:08]} {[%emt 00:00:06]} 10.
Nbd2 {[%clk 00:11:38]} {[%emt 00:00:20]} a5 {[%clk 00:12:26]} {[%emt 00:00:48]}
11. a4 {[%clk 00:10:16]} {[%emt 00:01:27]} Qc7 {[%clk 00:12:04]} {[%emt
00:00:28]} 12. c4 {[%clk 00:10:04]} {[%emt 00:00:16]} Rac8 {[%clk 00:11:15]}
{[%emt 00:00:54]} 13. Rac1 {[%clk 00:09:32]} {[%emt 00:00:37]} Qb8 {[%clk
00:11:17]} {[%emt 00:00:03]} 14. Rfd1 {[%clk 00:09:33]} {[%emt 00:00:04]} Qa8
{[%clk 00:11:12]} {[%emt 00:00:10]} 15. Ne5 {[%clk 00:08:37]} {[%emt 00:01:00]}
Rfd8 {[%clk 00:10:31]} {[%emt 00:00:47]} 16. cxd5 {[%clk 00:07:42]} {[%emt
00:01:01]} exd5 {[%clk 00:07:08]} {[%emt 00:03:28]} 17. Bh3 {[%clk 00:07:06]}
{[%emt 00:00:41]} Rc7 {[%clk 00:06:48]} {[%emt 00:00:25]} 18. Nxd7 {[%clk
00:05:39]} {[%emt 00:01:32]} Nxd7 {[%clk 00:06:51]} {[%emt 00:00:01]} 19. dxc5
{[%clk 00:04:34]} {[%emt 00:01:10]} bxc5 {[%clk 00:06:41]} {[%emt 00:00:15]} 20.
Bxd7 {[%clk 00:04:13]} {[%emt 00:00:26]} Rcxd7 {[%clk 00:06:26]} {[%emt
00:00:21]} 21. Qg4 {[%clk 00:04:15]} {[%emt 00:00:03]} d4 {[%clk 00:06:22]}
{[%emt 00:00:09]} 22. e4 {[%clk 00:03:03]} {[%emt 00:01:16]} Bf8 {[%clk
00:05:49]} {[%emt 00:00:39]} 23. f3 {[%clk 00:02:57]} {[%emt 00:00:11]} g6
{[%clk 00:05:39]} {[%emt 00:00:15]} 24. Nc4 {[%clk 00:01:57]} {[%emt 00:01:04]}
f5 {[%clk 00:04:25]} {[%emt 00:01:19]} 25. Qf4 {[%clk 00:01:34]} {[%emt
00:00:28]} Rf7 {[%clk 00:04:11]} {[%emt 00:00:19]} 26. Ne5 {[%clk 00:00:50]}
{[%emt 00:00:49]} Bd6 {[%clk 00:03:26]} {[%emt 00:00:50]} 27. Rxc5 {[%clk
00:00:26]} {[%emt 00:00:29]} Re7 {[%clk 00:01:22]} {[%emt 00:02:10]} 28. Rb5
{[%clk 00:00:13]} {[%emt 00:00:17]} Rde8 {[%clk 00:00:26]} {[%emt 00:01:01]} 29.
Bxd4 {[%clk 00:00:13]} {[%emt 00:00:05]} Bc6 {[%clk 00:00:17]} {[%emt
00:00:15]} 30. Nxc6 {[%clk 00:00:13]} {[%emt 00:00:05]} Bxf4 {[%clk 00:00:17]}
{[%emt 00:00:05]} 31. Nxe7+ {[%clk 00:00:16]} {[%emt 00:00:01]} Rxe7 {[%clk
00:00:20]} {[%emt 00:00:01]} 32. gxf4 {[%clk 00:00:20]} {[%emt 00:00:02]} fxe4
{[%clk 00:00:24]} {[%emt 00:00:01]} 33. Be5 {[%clk 00:00:18]} {[%emt 00:00:06]}
Qa7+ {[%clk 00:00:22]} {[%emt 00:00:08]} 34. Kg2 {[%clk 00:00:19]} {[%emt
00:00:03]} Qe3 {[%clk 00:00:23]} {[%emt 00:00:04]} 35. fxe4 {[%clk 00:00:17]}
{[%emt 00:00:07]} Qe2+ {[%clk 00:00:27]} 0-1

[Event "Kvibergspelen 2018"]
[Site "Prioritet Serneke Arena, Krutvagen 2, Gothenburg, Sweden"]
[Date "2018.04.20"]
[Round "4.3"]
[White "Sorensen, Hampus"]
[Black "Brynell, Stellan"]
[Result "0-1"]
[TimeControl "15 minutes + 5 seconds per move from move one (Round 1 - 4) / 90 minutes + 30 seconds per move from move one (Round 5 - 8)"]
[BlackTitle "GM"]
[WhiteFideId "8703884"]
[BlackFideId "1700219"]
[WhiteElo "2243"]
[BlackElo "2420"]

1. d4 {[%clk 00:15:07]} {[%emt 00:00:03]} e6 {[%clk 00:15:07]} {[%emt
00:00:03]} 2. c4 {[%clk 00:15:05]} {[%emt 00:00:06]} Nf6 {[%clk 00:15:10]}
{[%emt 00:00:02]} 3. Nf3 {[%clk 00:15:07]} {[%emt 00:00:04]} c5 {[%clk
00:15:13]} {[%emt 00:00:02]} 4. d5 {[%clk 00:15:10]} {[%emt 00:00:02]} d6
{[%clk 00:15:16]} 5. Nc3 {[%clk 00:15:01]} {[%emt 00:00:14]} exd5 {[%clk
00:15:20]} {[%emt 00:00:02]} 6. cxd5 {[%clk 00:14:58]} {[%emt 00:00:08]} g6
{[%clk 00:15:24]} 7. h3 {[%clk 00:14:55]} {[%emt 00:00:10]} Bg7 {[%clk
00:15:26]} {[%emt 00:00:03]} 8. e4 {[%clk 00:14:58]} {[%emt 00:00:02]} O-O
{[%clk 00:15:27]} {[%emt 00:00:04]} 9. Bd3 {[%clk 00:15:00]} {[%emt 00:00:02]}
b5 {[%clk 00:14:40]} {[%emt 00:00:52]} 10. Nxb5 {[%clk 00:14:56]} {[%emt
00:00:09]} Re8 {[%clk 00:14:42]} {[%emt 00:00:02]} 11. O-O {[%clk 00:14:39]}
{[%emt 00:00:22]} Nxe4 {[%clk 00:14:40]} {[%emt 00:00:08]} 12. Re1 {[%clk
00:14:31]} {[%emt 00:00:13]} a6 {[%clk 00:14:41]} {[%emt 00:00:05]} 13. Nc3
{[%clk 00:13:46]} {[%emt 00:00:49]} Nxc3 {[%clk 00:14:40]} {[%emt 00:00:05]} 14.
bxc3 {[%clk 00:13:42]} {[%emt 00:00:09]} Bxc3 {[%clk 00:14:43]} {[%emt
00:00:02]} 15. Rxe8+ {[%clk 00:13:45]} {[%emt 00:00:02]} Qxe8 {[%clk 00:14:47]}
{[%emt 00:00:01]} 16. Rb1 {[%clk 00:13:49]} Bg7 {[%clk 00:14:42]} {[%emt
00:00:10]} 17. Bf4 {[%clk 00:12:23]} {[%emt 00:01:30]} Qd8 {[%clk 00:12:43]}
{[%emt 00:02:05]} 18. Qb3 {[%clk 00:09:45]} {[%emt 00:02:43]} Bf8 {[%clk
00:10:45]} {[%emt 00:02:03]} 19. Qb6 {[%clk 00:06:23]} {[%emt 00:03:26]} Qxb6
{[%clk 00:10:45]} {[%emt 00:00:05]} 20. Rxb6 {[%clk 00:06:27]} {[%emt
00:00:01]} Nd7 {[%clk 00:10:44]} {[%emt 00:00:07]} 21. Rc6 {[%clk 00:06:22]}
{[%emt 00:00:09]} Nf6 {[%clk 00:10:39]} {[%emt 00:00:10]} 22. Bxd6 {[%clk
00:02:45]} {[%emt 00:03:42]} Bd7 {[%clk 00:09:56]} {[%emt 00:00:48]} 23. Rb6
{[%clk 00:02:43]} {[%emt 00:00:08]} Nxd5 {[%clk 00:09:48]} {[%emt 00:00:12]} 24.
Rb8 {[%clk 00:02:26]} {[%emt 00:00:21]} Rxb8 {[%clk 00:09:47]} {[%emt
00:00:06]} 25. Bxb8 {[%clk 00:02:30]} {[%emt 00:00:01]} Bb5 {[%clk 00:09:16]}
{[%emt 00:00:36]} 26. Bc2 {[%clk 00:01:43]} {[%emt 00:00:52]} Nc3 {[%clk
00:08:42]} {[%emt 00:00:37]} 27. a3 {[%clk 00:01:26]} {[%emt 00:00:24]} c4
{[%clk 00:06:59]} {[%emt 00:01:48]} 28. Be5 {[%clk 00:01:29]} {[%emt 00:00:01]}
Ne2+ {[%clk 00:05:50]} {[%emt 00:01:14]} 29. Kf1 {[%clk 00:01:03]} {[%emt
00:00:32]} c3 {[%clk 00:05:53]} {[%emt 00:00:01]} 30. a4 {[%clk 00:01:04]}
{[%emt 00:00:04]} Bc4 {[%clk 00:05:57]} 31. Ke1 {[%clk 00:01:03]} {[%emt
00:00:07]} Bb4 {[%clk 00:05:44]} {[%emt 00:00:18]} 32. Nd4 {[%clk 00:00:34]}
{[%emt 00:00:33]} Nxd4 {[%clk 00:05:28]} {[%emt 00:00:21]} 33. Bxd4 {[%clk
00:00:38]} {[%emt 00:00:01]} f5 {[%clk 00:04:56]} {[%emt 00:00:37]} 34. g3
{[%clk 00:00:15]} {[%emt 00:00:28]} Kf7 {[%clk 00:04:59]} {[%emt 00:00:02]} 35.
Kd1 {[%clk 00:00:17]} {[%emt 00:00:04]} Ke6 {[%clk 00:04:57]} {[%emt 00:00:07]}
36. Bh8 {[%clk 00:00:15]} {[%emt 00:00:07]} Kd5 {[%clk 00:04:55]} {[%emt
00:00:07]} 37. h4 {[%clk 00:00:18]} {[%emt 00:00:02]} Bf1 {[%clk 00:04:14]}
{[%emt 00:00:46]} 38. Ke1 {[%clk 00:00:13]} {[%emt 00:00:11]} Bg2 {[%clk
00:04:00]} {[%emt 00:00:18]} 39. Kd1 {[%clk 00:00:13]} {[%emt 00:00:05]} Bf3+
{[%clk 00:03:53]} {[%emt 00:00:12]} 40. Ke1 {[%clk 00:00:10]} {[%emt 00:00:09]}
Kc4 {[%clk 00:03:52]} {[%emt 00:00:06]} 41. Bg7 {[%clk 00:00:12]} {[%emt
00:00:03]} Bc5 {[%clk 00:03:42]} {[%emt 00:00:14]} 42. Bf6 {[%clk 00:00:12]}
{[%emt 00:00:05]} Be4 {[%clk 00:03:39]} {[%emt 00:00:08]} 43. Kd1 {[%clk
00:00:11]} {[%emt 00:00:06]} Bxf2 {[%clk 00:03:39]} {[%emt 00:00:05]} 44. Bxe4
{[%clk 00:00:12]} {[%emt 00:00:04]} fxe4 {[%clk 00:03:42]} {[%emt 00:00:01]} 45.
Kc2 {[%clk 00:00:17]} Bxg3 {[%clk 00:03:32]} {[%emt 00:00:15]} 46. h5 {[%clk
00:00:19]} {[%emt 00:00:03]} gxh5 {[%clk 00:03:34]} {[%emt 00:00:03]} 47. Bxc3
{[%clk 00:00:22]} {[%emt 00:00:02]} h4 {[%clk 00:03:38]} {[%emt 00:00:01]} 0-1

[Event "Kvibergspelen 2018"]
[Site "Prioritet Serneke Arena, Krutvagen 2, Gothenburg, Sweden"]
[Date "2018.04.20"]
[Round "4.4"]
[White "Nilsson, Anders"]
[Black "Ernst, Thomas"]
[Result "0-1"]
[TimeControl "15 minutes + 5 seconds per move from move one (Round 1 - 4) / 90 minutes + 30 seconds per move from move one (Round 5 - 8)"]
[WhiteTitle "CM"]
[BlackTitle "GM"]
[WhiteFideId "1705423"]
[BlackFideId "1700065"]
[WhiteElo "2217"]
[BlackElo "2366"]

1. d4 {[%clk 00:15:10]} Nf6 {[%clk 00:15:08]} {[%emt 00:00:02]} 2. Nf3 {[%clk
00:15:13]} {[%emt 00:00:02]} g6 {[%clk 00:15:12]} {[%emt 00:00:02]} 3. Bg5
{[%clk 00:15:17]} {[%emt 00:00:01]} Bg7 {[%clk 00:15:15]} {[%emt 00:00:01]} 4.
Nbd2 {[%clk 00:15:20]} {[%emt 00:00:02]} c5 {[%clk 00:15:15]} {[%emt 00:00:05]}
5. c3 {[%clk 00:15:10]} {[%emt 00:00:16]} cxd4 {[%clk 00:14:53]} {[%emt
00:00:26]} 6. cxd4 {[%clk 00:15:14]} {[%emt 00:00:01]} d5 {[%clk 00:14:56]}
{[%emt 00:00:02]} 7. e3 {[%clk 00:14:57]} {[%emt 00:00:22]} O-O {[%clk
00:14:40]} {[%emt 00:00:21]} 8. Bd3 {[%clk 00:14:28]} {[%emt 00:00:33]} Nc6
{[%clk 00:14:30]} {[%emt 00:00:15]} 9. Rc1 {[%clk 00:14:12]} {[%emt 00:00:22]}
Qb6 {[%clk 00:14:01]} {[%emt 00:00:33]} 10. Qb3 {[%clk 00:13:29]} {[%emt
00:00:48]} Qxb3 {[%clk 00:13:29]} {[%emt 00:00:37]} 11. Nxb3 {[%clk 00:13:33]}
a5 {[%clk 00:13:18]} {[%emt 00:00:16]} 12. a3 {[%clk 00:12:31]} {[%emt
00:01:08]} Ne4 {[%clk 00:13:00]} {[%emt 00:00:22]} 13. Bf4 {[%clk 00:11:29]}
{[%emt 00:01:07]} f6 {[%clk 00:12:19]} {[%emt 00:00:46]} 14. Nfd2 {[%clk
00:10:22]} {[%emt 00:01:12]} Nxd2 {[%clk 00:11:27]} {[%emt 00:00:57]} 15. Kxd2
{[%clk 00:10:23]} {[%emt 00:00:04]} e5 {[%clk 00:11:25]} {[%emt 00:00:07]} 16.
Bg3 {[%clk 00:10:17]} {[%emt 00:00:11]} a4 {[%clk 00:10:53]} {[%emt 00:00:37]}
17. Na1 {[%clk 00:09:30]} {[%emt 00:00:53]} exd4 {[%clk 00:10:27]} {[%emt
00:00:30]} 18. e4 {[%clk 00:08:42]} {[%emt 00:00:52]} Bh6+ {[%clk 00:09:11]}
{[%emt 00:01:22]} 19. f4 {[%clk 00:08:45]} {[%emt 00:00:02]} Be6 {[%clk
00:09:02]} {[%emt 00:00:14]} 20. exd5 {[%clk 00:08:27]} {[%emt 00:00:24]} Bxd5
{[%emt 00:00:02]} 21. Bc4 Rfd8 {[%clk 00:08:26]} {[%emt 00:00:43]} 22. Kd3
{[%clk 00:08:29]} {[%emt 00:00:08]} Bxc4+ {[%clk 00:08:02]} {[%emt 00:00:29]}
23. Rxc4 {[%clk 00:08:32]} {[%emt 00:00:02]} Rd5 {[%clk 00:07:58]} {[%emt
00:00:09]} 24. Nc2 {[%clk 00:08:33]} {[%emt 00:00:05]} Rb5 {[%clk 00:07:54]}
{[%emt 00:00:08]} 25. Nb4 {[%clk 00:08:33]} {[%emt 00:00:06]} Nxb4+ {[%clk
00:07:43]} {[%emt 00:00:16]} 26. Rxb4 {[%clk 00:08:26]} {[%emt 00:00:12]} Rxb4
{[%clk 00:07:43]} {[%emt 00:00:04]} 27. axb4 {[%clk 00:08:30]} Bf8 {[%clk
00:07:37]} {[%emt 00:00:11]} 28. Kxd4 {[%clk 00:08:00]} {[%emt 00:00:36]} Bxb4
{[%clk 00:07:37]} {[%emt 00:00:04]} 29. Kc4 {[%clk 00:07:48]} {[%emt 00:00:17]}
Bf8 {[%clk 00:07:31]} {[%emt 00:00:10]} 30. Rd1 {[%clk 00:07:40]} {[%emt
00:00:14]} Rc8+ {[%clk 00:07:15]} {[%emt 00:00:20]} 31. Kb5 {[%clk 00:06:42]}
{[%emt 00:01:04]} Rc2 {[%clk 00:06:55]} {[%emt 00:00:24]} 32. Kxa4 {[%clk
00:06:43]} {[%emt 00:00:04]} Rxb2 {[%clk 00:06:56]} {[%emt 00:00:04]} 33. Rd5
{[%clk 00:06:22]} {[%emt 00:00:26]} Rxg2 {[%clk 00:06:36]} {[%emt 00:00:25]} 34.
Rb5 {[%clk 00:06:22]} {[%emt 00:00:05]} Ra2+ {[%clk 00:05:57]} {[%emt
00:00:42]} 35. Kb3 {[%clk 00:06:26]} {[%emt 00:00:02]} Ra7 {[%clk 00:05:50]}
{[%emt 00:00:12]} 36. Bf2 {[%clk 00:06:09]} {[%emt 00:00:23]} Ra3+ {[%clk
00:05:45]} {[%emt 00:00:10]} 37. Kb2 {[%clk 00:06:13]} Rf3 {[%emt 00:00:04]} 38.
Bg3 {[%emt 00:00:01]} Bd6 {[%clk 00:05:43]} {[%emt 00:00:07]} 39. Rxb7 {[%clk
00:01:42]} {[%emt 00:04:41]} Bxf4 {[%clk 00:05:42]} {[%emt 00:00:05]} 40. Be1
{[%clk 00:01:33]} {[%emt 00:00:14]} Bxh2 {[%emt 00:00:10]} 0-1

[Event "Kvibergspelen 2018"]
[Site "Prioritet Serneke Arena, Krutvagen 2, Gothenburg, Sweden"]
[Date "2018.04.20"]
[Round "4.5"]
[White "Strom, Leif"]
[Black "Hillarp Persson, Tiger"]
[Result "1/2-1/2"]
[TimeControl "15 minutes + 5 seconds per move from move one (Round 1 - 4) / 90 minutes + 30 seconds per move from move one (Round 5 - 8)"]
[BlackTitle "GM"]
[WhiteFideId "1709410"]
[BlackFideId "1700812"]
[WhiteElo "2111"]
[BlackElo "2540"]

1. c4 {[%clk 00:15:09]} e5 {[%clk 00:14:49]} {[%emt 00:00:21]} 2. g3 {[%clk
00:15:12]} {[%emt 00:00:02]} Nc6 {[%clk 00:14:50]} {[%emt 00:00:05]} 3. Bg2
{[%clk 00:15:16]} {[%emt 00:00:01]} Bc5 {[%clk 00:14:53]} {[%emt 00:00:02]} 4.
Nc3 {[%clk 00:15:07]} {[%emt 00:00:14]} a6 {[%clk 00:14:51]} {[%emt 00:00:06]}
5. e3 {[%clk 00:15:07]} {[%emt 00:00:06]} Ba7 {[%clk 00:14:36]} {[%emt
00:00:19]} 6. Nge2 {[%clk 00:15:07]} {[%emt 00:00:05]} d6 {[%clk 00:14:39]}
{[%emt 00:00:02]} 7. O-O {[%clk 00:14:29]} {[%emt 00:00:43]} h5 {[%clk
00:14:41]} {[%emt 00:00:03]} 8. h3 {[%clk 00:14:03]} {[%emt 00:00:31]} h4
{[%clk 00:14:44]} {[%emt 00:00:02]} 9. g4 {[%clk 00:14:07]} f5 {[%clk
00:14:48]} 10. f3 {[%clk 00:13:13]} {[%emt 00:01:02]} Nf6 {[%clk 00:14:10]}
{[%emt 00:00:43]} 11. d4 {[%clk 00:12:01]} {[%emt 00:01:17]} Qe7 {[%clk
00:12:35]} {[%emt 00:01:40]} 12. Kh1 {[%clk 00:11:13]} {[%emt 00:00:53]} g6
{[%clk 00:10:34]} {[%emt 00:02:06]} 13. a3 {[%clk 00:10:58]} {[%emt 00:00:21]}
Qf7 {[%clk 00:10:14]} {[%emt 00:00:25]} 14. b3 {[%clk 00:09:05]} {[%emt
00:01:58]} Bd7 {[%clk 00:10:00]} {[%emt 00:00:19]} 15. Bb2 {[%clk 00:09:07]}
{[%emt 00:00:03]} Rb8 {[%clk 00:09:33]} {[%emt 00:00:31]} 16. Qd2 {[%clk
00:08:24]} {[%emt 00:00:48]} O-O {[%clk 00:09:03]} {[%emt 00:00:36]} 17. g5
{[%clk 00:07:06]} {[%emt 00:01:22]} Nh5 {[%clk 00:07:39]} {[%emt 00:01:29]} 18.
f4 {[%clk 00:07:10]} exd4 {[%clk 00:07:28]} {[%emt 00:00:16]} 19. exd4 {[%clk
00:06:50]} {[%emt 00:00:25]} Rfe8 {[%clk 00:07:19]} {[%emt 00:00:14]} 20. Bd5
{[%clk 00:06:01]} {[%emt 00:00:55]} Be6 {[%clk 00:07:22]} {[%emt 00:00:02]} 21.
Bxe6 {[%clk 00:06:04]} {[%emt 00:00:01]} Qxe6 {[%clk 00:07:18]} {[%emt
00:00:09]} 22. d5 {[%clk 00:06:03]} {[%emt 00:00:07]} Qxe2 {[%clk 00:07:20]}
{[%emt 00:00:02]} 23. Nxe2 {[%clk 00:03:47]} {[%emt 00:02:21]} Rxe2 {[%clk
00:07:24]} {[%emt 00:00:02]} 24. Qxe2 {[%clk 00:03:26]} {[%emt 00:00:26]} Ng3
{[%clk 00:07:28]} {[%emt 00:00:01]} 25. Kg2 {[%clk 00:03:30]} Nxe2 {[%clk
00:07:31]} {[%emt 00:00:02]} 26. dxc6 {[%clk 00:03:33]} {[%emt 00:00:02]} bxc6
{[%clk 00:07:31]} {[%emt 00:00:05]} 27. Rae1 {[%clk 00:03:27]} {[%emt
00:00:11]} Ng3 {[%clk 00:07:35]} 28. Rf3 {[%clk 00:03:29]} {[%emt 00:00:04]}
Ne4 {[%clk 00:07:35]} {[%emt 00:00:04]} 29. b4 {[%clk 00:03:21]} {[%emt
00:00:14]} Kf7 {[%clk 00:07:37]} {[%emt 00:00:03]} 30. Rd3 {[%clk 00:03:14]}
{[%emt 00:00:12]} a5 {[%clk 00:06:51]} {[%emt 00:00:51]} 31. Bc3 {[%clk
00:02:37]} {[%emt 00:00:43]} axb4 {[%clk 00:06:36]} {[%emt 00:00:20]} 32. axb4
{[%clk 00:02:35]} {[%emt 00:00:07]} Nxc3 {[%clk 00:06:39]} {[%emt 00:00:02]} 33.
Rxc3 {[%clk 00:02:39]} Rxb4 {[%clk 00:06:43]} {[%emt 00:00:01]} 34. Re2 {[%clk
00:02:35]} {[%emt 00:00:08]} Bd4 {[%clk 00:06:30]} {[%emt 00:00:18]} 35. Ra3
{[%clk 00:02:39]} {[%emt 00:00:02]} Rxc4 {[%clk 00:06:27]} {[%emt 00:00:08]} 36.
Ra8 {[%clk 00:02:42]} {[%emt 00:00:02]} Bb6 {[%clk 00:04:29]} {[%emt 00:02:03]}
37. Rae8 {[%clk 00:02:42]} {[%emt 00:00:05]} Re4 {[%clk 00:04:22]} {[%emt
00:00:12]} 38. R2xe4 {[%clk 00:02:40]} {[%emt 00:00:07]} fxe4 {[%clk 00:04:25]}
{[%emt 00:00:01]} 39. Rxe4 {[%clk 00:02:42]} {[%emt 00:00:03]} d5 {[%clk
00:04:22]} {[%emt 00:00:08]} 40. Re5 {[%clk 00:02:38]} {[%emt 00:00:09]} Bd4
{[%clk 00:04:23]} {[%emt 00:00:03]} 41. Re2 {[%clk 00:02:35]} {[%emt 00:00:08]}
c5 {[%clk 00:04:26]} {[%emt 00:00:02]} 42. Kf3 {[%clk 00:02:29]} {[%emt
00:00:11]} c4 {[%clk 00:04:27]} {[%emt 00:00:05]} 43. Kg4 {[%clk 00:02:31]}
{[%emt 00:00:03]} Bc5 {[%clk 00:02:54]} {[%emt 00:01:37]} 44. f5 {[%clk
00:02:32]} {[%emt 00:00:05]} d4 {[%clk 00:02:23]} {[%emt 00:00:36]} 45. fxg6+
{[%clk 00:02:30]} {[%emt 00:00:07]} Kxg6 {[%clk 00:02:25]} {[%emt 00:00:02]} 46.
Re6+ {[%clk 00:02:33]} {[%emt 00:00:02]} Kf7 {[%clk 00:02:07]} {[%emt
00:00:23]} 47. Rc6 {[%clk 00:02:38]} {[%emt 00:00:01]} d3 {[%clk 00:01:51]}
{[%emt 00:00:20]} 48. Rxc5 {[%clk 00:02:38]} {[%emt 00:00:05]} d2 {[%clk
00:01:54]} {[%emt 00:00:03]} 49. Rd5 {[%clk 00:02:21]} {[%emt 00:00:21]} c3
{[%clk 00:01:58]} {[%emt 00:00:01]} 50. Kf5 {[%clk 00:02:22]} {[%emt 00:00:04]}
c2 {[%clk 00:02:01]} {[%emt 00:00:02]} 51. g6+ {[%clk 00:02:11]} {[%emt
00:00:16]} Ke7 {[%clk 00:02:04]} {[%emt 00:00:02]} 52. g7 {[%clk 00:01:02]}
{[%emt 00:01:14]} d1=Q {[%clk 00:02:04]} {[%emt 00:00:04]} 53. g8=Q {[%clk
00:00:47]} {[%emt 00:00:20]} Qf3+ {[%clk 00:01:15]} {[%emt 00:00:55]} 54. Ke5
{[%clk 00:00:51]} Qe3+ {[%clk 00:01:16]} {[%emt 00:00:05]} 55. Kf5 {[%clk
00:00:55]} Qxh3+ {[%clk 00:01:08]} {[%emt 00:00:12]} 56. Ke5 {[%clk 00:00:59]}
Qe3+ {[%emt 00:00:04]} 57. Kf5 Qf3+ {[%clk 00:00:22]} {[%emt 00:00:53]} 58. Ke5
{[%clk 00:01:08]} Qe2+ {[%clk 00:00:16]} {[%emt 00:00:12]} 59. Kf5 {[%clk
00:01:12]} {[%emt 00:00:01]} Qh5+ {[%clk 00:00:17]} {[%emt 00:00:04]} 60. Ke4
{[%clk 00:01:15]} {[%emt 00:00:02]} Qxd5+ {[%clk 00:00:13]} {[%emt 00:00:09]}
61. Kxd5 {[%clk 00:01:14]} {[%emt 00:00:06]} c6+ {[%clk 00:00:10]} {[%emt
00:00:08]} 62. Ke5 {[%clk 00:01:17]} {[%emt 00:00:02]} c1=Q {[%clk 00:00:13]}
{[%emt 00:00:02]} 63. Qh7+ {[%clk 00:00:55]} {[%emt 00:00:28]} Kd8 {[%clk
00:00:13]} {[%emt 00:00:05]} 64. Qxh4+ {[%clk 00:00:58]} {[%emt 00:00:02]} Kc8
{[%clk 00:00:10]} {[%emt 00:00:08]} 65. Kd6 {[%clk 00:00:28]} {[%emt 00:00:42]}
Qa3+ {[%clk 00:00:09]} 66. Kxc6 {[%clk 00:00:30]} {[%emt 00:00:02]} Qa6+ {[%clk
00:00:10]} {[%emt 00:00:04]} 1/2-1/2

[Event "Kvibergspelen 2018"]
[Site "Prioritet Serneke Arena, Krutvagen 2, Gothenburg, Sweden"]
[Date "2018.04.20"]
[Round "4.6"]
[White "Tikkanen, Hans"]
[Black "Naslund, Mikael"]
[Result "1-0"]
[TimeControl "15 minutes + 5 seconds per move from move one (Round 1 - 4) / 90 minutes + 30 seconds per move from move one (Round 5 - 8)"]
[WhiteTitle "GM"]
[BlackTitle "FM"]
[WhiteFideId "1706446"]
[BlackFideId "1708260"]
[WhiteElo "2486"]
[BlackElo "2224"]

1. d4 {[%clk 00:15:09]} Nf6 {[%clk 00:15:08]} {[%emt 00:00:02]} 2. Nf3 {[%clk
00:15:12]} {[%emt 00:00:02]} g6 {[%clk 00:15:06]} {[%emt 00:00:08]} 3. e3
{[%clk 00:15:10]} {[%emt 00:00:08]} Bg7 {[%clk 00:15:08]} {[%emt 00:00:02]} 4.
c4 {[%clk 00:15:13]} {[%emt 00:00:02]} O-O {[%clk 00:15:04]} {[%emt 00:00:09]}
5. Be2 {[%clk 00:15:16]} {[%emt 00:00:01]} c5 {[%clk 00:14:56]} {[%emt
00:00:13]} 6. d5 {[%clk 00:15:16]} {[%emt 00:00:07]} d6 {[%clk 00:14:51]}
{[%emt 00:00:08]} 7. O-O {[%clk 00:15:16]} {[%emt 00:00:05]} Bg4 {[%clk
00:13:41]} {[%emt 00:01:15]} 8. h3 {[%clk 00:15:04]} {[%emt 00:00:17]} Bxf3
{[%clk 00:13:44]} {[%emt 00:00:02]} 9. Bxf3 {[%clk 00:15:08]} Nbd7 {[%clk
00:13:34]} {[%emt 00:00:16]} 10. Nc3 {[%clk 00:15:08]} {[%emt 00:00:04]} Rb8
{[%clk 00:13:32]} {[%emt 00:00:06]} 11. a4 {[%clk 00:13:59]} {[%emt 00:01:15]}
b6 {[%clk 00:13:31]} {[%emt 00:00:06]} 12. Be2 {[%clk 00:13:15]} {[%emt
00:00:49]} a6 {[%clk 00:13:11]} {[%emt 00:00:25]} 13. e4 {[%clk 00:12:44]}
{[%emt 00:00:35]} Ne8 {[%clk 00:12:45]} {[%emt 00:00:31]} 14. Be3 {[%clk
00:12:32]} {[%emt 00:00:17]} f5 {[%clk 00:11:54]} {[%emt 00:00:57]} 15. exf5
{[%clk 00:11:48]} {[%emt 00:00:48]} gxf5 {[%clk 00:11:46]} {[%emt 00:00:13]} 16.
f4 {[%clk 00:10:41]} {[%emt 00:01:12]} Nc7 {[%clk 00:10:41]} {[%emt 00:01:10]}
17. Bf2 {[%clk 00:08:06]} {[%emt 00:02:39]} Nf6 {[%clk 00:08:51]} {[%emt
00:01:55]} 18. Qd3 {[%clk 00:03:56]} {[%emt 00:04:16]} Qd7 {[%clk 00:06:51]}
{[%emt 00:02:05]} 19. Rad1 {[%clk 00:03:59]} {[%emt 00:00:01]} b5 {[%clk
00:06:26]} {[%emt 00:00:31]} 20. axb5 {[%clk 00:03:55]} {[%emt 00:00:09]} axb5
{[%clk 00:06:29]} {[%emt 00:00:02]} 21. cxb5 {[%clk 00:03:59]} {[%emt
00:00:01]} Ne4 {[%clk 00:05:45]} {[%emt 00:00:48]} 22. Nxe4 fxe4 {[%clk
00:05:49]} 23. Qxe4 {[%clk 00:03:57]} {[%emt 00:00:01]} Bxb2 {[%clk 00:05:45]}
{[%emt 00:00:09]} 24. Rb1 {[%clk 00:03:25]} {[%emt 00:00:38]} Bh8 {[%clk
00:03:33]} {[%emt 00:02:17]} 25. Rb3 {[%clk 00:01:55]} {[%emt 00:01:35]} Qf5
{[%clk 00:01:53]} {[%emt 00:01:44]} 26. Rg3+ {[%clk 00:01:00]} {[%emt
00:01:00]} Bg7 {[%clk 00:01:57]} {[%emt 00:00:01]} 27. Qxe7 {[%clk 00:01:03]}
{[%emt 00:00:03]} Rf7 {[%clk 00:02:00]} {[%emt 00:00:02]} 28. Qxd6 {[%clk
00:01:06]} {[%emt 00:00:02]} Rd7 {[%clk 00:01:06]} {[%emt 00:00:59]} 29. Qxc5
{[%clk 00:00:53]} {[%emt 00:00:17]} Nxd5 {[%clk 00:00:15]} {[%emt 00:00:57]} 30.
Bg4 {[%clk 00:00:32]} {[%emt 00:00:25]} 1-0